Cogmind - Beta 13 *** ADVENTURER MODE // 2024.04.16 @ 17:31:54 Player: Iris Result: Self-destructed Performance ------------- Evolutions (1) 500 Regions Visited (3) 600 Robots Destroyed (24) 120 Value Destroyed (430) 430 Prototype IDs (5) 100 Alien Tech Used (0) 0 Bonus (35) 35 TOTAL SCORE: 1785 Bonus ------- Follower Combat Kills 35 Cogmind --------- Core Integrity 360/400 Matter 300/300 Energy 215/250 System Corruption 0% Temperature Warm (157) Movement Core (200) Ox3 Location -9/Materials Parts ------- > --- POWER (1) -------- Ion Engine > --- PROPULSION (2) --- (None) > --- UTILITY (4) ------ Sensor Array Signal Interpreter > --- WEAPON (2) ------- Beam Rifle Shotgun > --- INVENTORY (5) ---- Aluminum Leg Light Armor Plating Particle Gun Peak State ------------ > --- POWER ------------ Light Nuclear Core > --- PROPULSION ------- Wheel Wheel > --- UTILITY ---------- Small Storage Unit Sensor Array > --- WEAPON ----------- Beam Rifle Beam Rifle > --- INVENTORY -------- Ion Engine Aluminum Leg Particle Gun Grenade Launcher [Rating: 11] Favorites ----------- Power Light Nuclear Core Engine Light Ion Engine Power Core Light Nuclear Core Propulsion Wheel Wheel Wheel Flight Unit Flight Unit Utility Sensor Array Device Sensor Array Storage Small Storage Unit Processor Signal Interpreter Weapon Assault Rifle Energy Gun Beam Rifle Ballistic Gun Assault Rifle Build | -11 -10 -10 -9 ------- Run | Yrd Mat Min Mat Slots Evolved 2 | . . . 2 Power . | . . . . Propulsion . | . . . . Utility 2 | . . . 2 Weapon . | . . . . Parts Attached 20 | 6 8 2 4 Power 3 | 1 1 . 1 Engine 2 | 1 . . 1 Core 1 | . 1 . . Reactor . | . . . . Propulsion 4 | 2 . 2 . Treads . | . . . . Leg . | . . . . Wheel 2 | 2 . . . Hover . | . . . . Flight 2 | . . 2 . Utility 4 | 1 2 . 1 Device 2 | . 1 . 1 Storage 1 | 1 . . . Processor 1 | . 1 . . Hackware . | . . . . Protection . | . . . . Artifact . | . . . . Weapon 9 | 2 5 . 2 Energy Gun 5 | 1 3 . 1 Energy Cannon . | . . . . Ballistic Gun 4 | 1 2 . 1 Ballistic Cannon . | . . . . Launcher . | . . . . Special Weapon . | . . . . Impact Weapon . | . . . . Slashing Weapon . | . . . . Piercing Weapon . | . . . . Special Melee Weapon . | . . . . Unidentified Prototypes . | . . . . Parts Lost 5 | . . 1 4 Power 1 | . . . 1 Propulsion 3 | . . 1 2 Utility 1 | . . . 1 Weapon . | . . . . Highest Loss Streak 3 | . . 1 3 To Critical Strikes . | . . . . Average Slot Usage (%) 89 | . 91 92 68 Engine 4 | . 5 . 8 Core 9 | . 8 14 3 Wheel 24 | . 28 21 . Flight 2 | . . 4 21 Device 8 | . 5 14 18 Storage 7 | . 10 . . Processor 6 | . 3 14 11 Energy Gun 13 | . 11 23 3 Ballistic Gun 12 | . 16 . 4 Naked Turns . | . . . . Heaviest Build 17 | 11 17 12 14 Greatest Support 20 | 20 20 20 8 Greatest Overweight (x) 1 | . . 1 1 Average Overweight (x) . | . . . . Largest Inventory Capacity 8 | 8 8 5 5 Average Capacity 6 | 6 7 5 5 Most Carried 8 | 2 8 5 5 Average Carried 5 | 1 6 5 4 Final Capacity 8 | 8 5 5 5 Final Carried 5 | 2 5 5 3 Class Distribution -------------------- 92% | Mutant 7% | Scavenger-Mutant Dominant Class ---------------- Mutant | -10/Materials Mutant | -10/Mines Scavenger-Mutant | -9/Materials Resources | -11 -10 -10 -9 ----------- Run | Yrd Mat Min Mat Matter Collected 583 | 209 254 20 100 Remotely . | . . . . Salvage Created 561 | . 353 84 124 Parts 43 | . 25 11 7 Haulers Intercepted 2 | . 2 . . Recyclers Shooed . | . . . . Parts Field Recycled . | . . . . Retrieved Matter . | . . . . Parts Self-Destructed . | . . . . Prevented . | . . . . Kills | -11 -10 -10 -9 ------- Run | Yrd Mat Min Mat Combat Hostiles Destroyed 19 | . 9 6 4 Guns 19 | . 9 6 4 Classes Destroyed 5 | . 4 . 1 Hauler 2 | . 2 . . Watcher 3 | . 3 . . Swarmer 13 | . 6 6 1 Grunt 5 | . 3 . 2 Sentry 1 | . . . 1 Best Kill Streak 6 | . 6 3 4 Combat Bots Only 6 | . 6 3 4 Max Kills in Single Turn 1 | . 1 1 1 Gunslinging . | . . . . Exploded . | . . . . Melee . | . . . . Uniques/NPCs Destroyed . | . . . . Combat | -11 -10 -10 -9 -------- Run | Yrd Mat Min Mat Hostile Shots Fired 99 | . 36 25 38 Missed 35 | . 12 8 15 Damage Taken 496 | . 185 128 183 Core 82 | . 18 24 40 Absorbed by Shields 34 | . . . 34 Ignored by Resistances 162 | . 59 41 62 Core Remaining (%) 91 | 100 . 83 . Volleys Fired 61 | . 31 15 15 Largest 2 | . 2 2 2 Hottest 112 | . 112 112 79 Shots Fired 116 | . 62 30 24 Gun 116 | . 62 30 24 Cannon . | . . . . Launcher . | . . . . Special . | . . . . Kinetic 56 | . 41 . 15 Thermal 60 | . 21 30 9 Explosive . | . . . . Electromagnetic . | . . . . Robot Hit Streak 21 | . 19 8 21 Robot Miss Streak 4 | . 3 4 1 Penetration Max . | . . . . Secondary Targets 1 | . 1 . . Max Gunslinging Chain 1 | . 1 . . Shots Hit Robots 85 | . 46 17 22 Core Hits 33 | . 20 6 7 Critical Kills . | . . . . Critical Parts Destroyed . | . . . . Critical Strikes 1 | . . 1 . Burn 1 | . . 1 . Melee Attacks . | . . . . Impact . | . . . . Slashing . | . . . . Piercing . | . . . . Sneak Attacks . | . . . . Combat Hostiles . | . . . . Follow-up Attacks . | . . . . Damage Inflicted 1246 | . 595 263 388 Guns 1246 | . 595 263 388 Cannons . | . . . . Explosions . | . . . . Melee . | . . . . Ramming . | . . . . Kinetic 668 | . 383 . 285 Thermal 578 | . 212 263 103 Explosive . | . . . . Electromagnetic . | . . . . Impact . | . . . . Slashing . | . . . . Piercing . | . . . . Highest Corruption . | . . . . Average Corruption . | . . . . Corruption Purged . | . . . . Corruption Blocked . | . . . . Overload Shots . | . . . . Overflow Damage . | . . . . Projectiles . | . . . . Explosions . | . . . . Melee . | . . . . Knockbacks . | . . . . Impact . | . . . . Kinetic . | . . . . Secondary . | . . . . Self-Inflicted Damage . | . . . . Shots . | . . . . Rammed . | . . . . Targets Rammed . | . . . . Kicked . | . . . . Crushed . | . . . . Highest Temperature 342 | . 210 342 148 Average Temperature 90 | . 48 129 72 Received Heat Transfer 194 | . 102 12 80 Siege Activations . | . . . . Robots Corrupted . | . . . . Combat Hostiles . | . . . . Parts Fried . | . . . . Impact Corruptions . | . . . . Robots Melted . | . . . . Combat Hostiles . | . . . . Parts Melted 6 | . 5 1 . Heat Transferred 1554 | . 555 740 259 Parts Sabotaged . | . . . . Parts Stolen . | . . . . Parts Stripped . | . . . . Power Chain Reactions . | . . . . Alert | -11 -10 -10 -9 ------- Run | Yrd Mat Min Mat Peak Influence 295 | . 270 278 295 Initial 91 | . . 4 91 Average 138 | . 130 169 181 Maximum Alert Level 1 | . 1 1 1 Low Security (%) 73 | 100 73 76 60 Level 1 26 | . 26 23 39 Level 2 . | . . . . Level 3 . | . . . . Level 4 . | . . . . Level 5 . | . . . . High Security . | . . . . Max Security . | . . . . Squads Dispatched 3 | . 1 . 2 Investigation 2 | . 1 . 1 Extermination . | . . . . Reinforcement 1 | . . . 1 Assault . | . . . . Garrison . | . . . . Intercept . | . . . . Searches Triggered . | . . . . Construction Impeded . | . . . . Haulers Reinforced . | . . . . Active Scanning Responses . | . . . . Cargo Convoy Interrupts . | . . . . Stealth | -11 -10 -10 -9 --------- Run | Yrd Mat Min Mat Distress Signals . | . . . . Communications Jammed . | . . . . Distress Signals . | . . . . Times Spotted 48 | . 19 13 16 Peak Tracking Total 9 | . 4 6 9 Tactical Retreats 7 | . 2 1 4 Traps | -11 -10 -10 -9 ------- Run | Yrd Mat Min Mat Traps Triggered 1 | . 1 . . Indirectly . | . . . . Trap Hack Attempts . | . . . . Triggered . | . . . . Disarmed 6 | . 6 . . Reprogrammed . | . . . . Reused . | . . . . Traps Extracted . | . . . . Installed . | . . . . Triggered . | . . . . Objects Rigged 4 | . . . 4 Machines | -11 -10 -10 -9 ---------- Run | Yrd Mat Min Mat Machines Disabled 2 | . 1 1 . Max in Single Turn 1 | . 1 . . Machines Repaired . | . . . . Machines Dismantled . | . . . . Machines Sabotaged . | . . . . Overloaded Fab Kills . | . . . . Hacking | -11 -10 -10 -9 --------- Run | Yrd Mat Min Mat Machines Accessed 13 | . 8 . 5 Terminals 13 | . 8 . 5 Fabricators . | . . . . Repair Stations . | . . . . Recycling Units . | . . . . Scanalyzers . | . . . . Garrison Access . | . . . . Total Hacks 36 | . 20 . 16 Successful 19 | . 11 . 8 Failed 16 | . 8 . 8 Catastrophic 3 | . . . 3 Database Lockouts 1 | . 1 . . Manual 37 | . 21 . 16 Terminals 36 | . 20 . 16 Fabricators . | . . . . Repair Stations . | . . . . Recycling Units . | . . . . Scanalyzers . | . . . . Garrison Access . | . . . . Terminal Hacks 8 | . 5 . 3 Prototype ID Bank 4 | . 3 . 1 Terminal Index 2 | . 1 . 1 Disarm Traps 1 | . 1 . . Transport Status 1 | . . . 1 Fabricator Hacks . | . . . . Repair Station Hacks . | . . . . Recycling Unit Hacks . | . . . . Scanalyzer . | . . . . Garrison Access Hacks . | . . . . Unauthorized Hacks 11 | . 6 . 5 Terminals 11 | . 6 . 5 Track 4 | . 2 . 2 Botnet 6 | . 4 . 2 Detonate 1 | . . . 1 Fabricators . | . . . . Repair Stations . | . . . . Recycling Units . | . . . . Scanalyzers . | . . . . Garrison Access . | . . . . Data Cores Recovered . | . . . . Used . | . . . . Hacking Detections 13 | . 8 . 5 Full Trace Events 1 | . . . 1 Feedback Events . | . . . . Feedback Blocked . | . . . . Robot Schematics Acquired . | . . . . Robots Built . | . . . . Authchips . | . . . . Time . | . . . . Total Robot Build Rating . | . . . . Part Schematics Acquired . | . . . . Parts Built . | . . . . Authchips . | . . . . Time . | . . . . Total Part Build Rating . | . . . . Parts Repaired . | . . . . Time . | . . . . Parts Recycled . | . . . . Recycled Matter . | . . . . Retrieved Matter . | . . . . Retrieved Components . | . . . . Parts Scanalyzed . | . . . . Part Schematics Acquired . | . . . . Parts Damaged . | . . . . Bothacking | -11 -10 -10 -9 ------------ Run | Yrd Mat Min Mat Used RIF Installer . | . . . . Robots Hacked . | . . . . Non-combat . | . . . . Combat . | . . . . Robot Hacks Applied . | . . . . Relay Couplers Released . | . . . . Fabnet Peak Effective % . | . . . . Robots Rewired . | . . . . Allies Hacked . | . . . . Hacks Repelled . | . . . . Allies | -11 -10 -10 -9 -------- Run | Yrd Mat Min Mat Total Allies 3 | . . 3 . Largest Group 3 | . . 3 . Highest-Rated Group 40 | . . 40 . Highest-Rated Ally 16 | . . 16 . Total Orders . | . . . . Ally Attacks 9 | . . 9 . Total Damage 224 | . . 224 . Kills 6 | . . 6 . Allies Corrupted . | . . . . Allies Melted . | . . . . Intel | -11 -10 -10 -9 ------- Run | Yrd Mat Min Mat Robot Analysis Total . | . . . . Derelict Logs Recovered 1 | . . 1 . Drone Launches . | . . . . Drone Recoveries . | . . . . Exploration | -11 -10 -10 -9 ------------- Run | Yrd Mat Min Mat Turns Passed 1367 | 43 928 280 116 Spaces Moved 1387 | 41 822 336 188 Core 3 | 3 . . . Treads . | . . . . Legs . | . . . . Wheels 1081 | 38 822 221 . Hover . | . . . . Flight 303 | . . 115 188 Fastest Speed 37 | 50 80 37 37 Average Speed 71 | 77 80 67 37 Slowest Speed 120 | 80 80 120 117 Overloaded Moves . | . . . . Propulsion Burnouts . | . . . . Robots Hopped 1 | . . 1 . Cave-ins Triggered . | . . . . Exploration Rate (%) 46 | 3 95 64 22 Regions Visited 3 Branch Regions 1 Pre-discovered Areas 1 | . . 1 . Known Exits Taken 2 | . 1 1 . Unknown Exits Taken 1 | 1 . . . Scrap Searched 1 | . . 1 . Spaces Dug . | . . . . Terrain Destroyed . | . . . . Melee . | . . . . Projectile . | . . . . AOE . | . . . . Terrain Rammed . | . . . . Walls Destroyed . | . . . . Machines Disabled . | . . . . Actions | -11 -10 -10 -9 --------- Run | Yrd Mat Min Mat Total 1647 | 48 1032 359 208 Wait 158 | . 153 5 . Move 1382 | 40 821 333 188 Hop 1 | . . 1 . Pick Up 10 | 2 7 . 1 Fast Attach 16 | 6 7 2 1 Attach 4 | . 1 . 3 Detach 3 | . 3 . . Swap . | . . . . Drop 12 | . 9 3 . Fire 61 | . 31 15 15 Melee . | . . . . Ram . | . . . . Kick . | . . . . Crush . | . . . . Escape Stasis . | . . . . Rewire . | . . . . Trap . | . . . . Miscellaneous . | . . . . Route ------- -11/Scrapyard -10/Materials (discovered 4 exits: *Mat x3 / *Min) -10/Mines -9/Materials History --------- Turn | Location | Event 17 | -11/Scrapyard | Discovered new exit (range 15) 44 | -11/Scrapyard | Entered Materials 309 | -10/Materials | Build established: Mutant 331 | -10/Materials | Discovered new exit (range 5) 606 | -10/Materials | Discovered new exit (range 13) 703 | -10/Materials | Discovered new exit (range 15) 816 | -10/Materials | Central database locked down 858 | -10/Materials | Identified exit to Materials 904 | -10/Materials | Discovered new exit (range 8) 912 | -10/Materials | Identified exit to Mines 972 | -10/Materials | Entered Mines 974 | -10/Mines | Met a Derelict bent on vengeance 974 | -10/Mines | Assisted by bots powering up and referring to "LRC-V3" 1017 | -10/Mines | Learned location of Zion (-7) 1053 | -10/Mines | Discovered exit to Materials (range 12) 1063 | -10/Mines | Lost 3 allies 1158 | -10/Mines | Found a hidden stash of uninstalled traps 1252 | -10/Mines | Entered Materials 1252 | -9/Materials | Evolved 2 slots: Utility x2 1368 | -9/Materials | Self-destructed Last Messages --------------- Awaiting botnet instructions. 01279_ ALERT: Suspicious activity at Terminal M011. Dispatching Investigation squad. 01283_ Lgt. Nuclear Core destroyed. 01285_ Acquired Shield Generator. 01288_ Acquired Shotgun. 01296_ K-01 Serf collects debris. 01314_ Acquired 17 matter. 01326_ S-10 Pest destroyed. 01328_ Acquired 15 matter. 01337_ G-34 Mercenary destroyed. 01349_ Acquired 44 matter. 01351_ Acquired 4 matter. 01354_ Shield Generator destroyed. 01357_ Acquired 4 matter. 01357_ Flight Unit destroyed. 01360_ Acquired 4 matter. 01365_ Y-45 Defender destroyed. 01366_ Acquired 4 matter. 01368_ Flight Unit destroyed. Map ----- +----------------------------------------------------+ | ?????????### ### #### #?????? | | ???????????# #####+###### ######+ | | ???????????# # ## | | ???????????# # ## | | ???????????# # ## | | ????#####??# # ## ####+ | | ????? ??# # ## #? | | ????? ?# # ## #!! | | ????? """ ?# # ## #!! | | ?????""""" # # ## # | | ?????""""" # #####+###### # | | ?????""""" + "T" # | | ???? """ # ##### | | ??? # o """"" ##??? | | ??########## ] """"" T#??? | | ??????????#T """"" ##### | | ??????????## | | ???????????# | | ??????????## | | ??????????# ###""T""#####+# | | ??????????+ #?#"""""#?? | | ??????????# #?######## """ | | ??????????# [= #????????# """ | | ??##########X=###########????# """ | | ??# !*#g%# #????# | | ??#""" =@Y*=+ #????# """ | | ??#""" =[#[!# #????# """ | | ??#""" !=# # """ """ #????????? | | ??# # # """ """ #????????? | | ??#""" # # """ """ ??????????# | | ??#""" ! # # ??????????? | | ??#""" # # ??????????? | | ??# # ##########??????????? | | ??#############???????????????????? | | ??????????????????????????????????? | | ??????????????????????????????????? | | ??????????????????????????????????? | | ??????????????????????????????????? | | ??????????????????????????????????? | | ??????????????????????????????????? | | ??????????????????????????????????? | | ??????????????????????????????????? | | ??????????????????????????????????? | | ??????????????????????????????????? | | | | | | | | | | | | | +----------------------------------------------------+ Best States ------------- Heat Dissipation 28 Energy Generation 14 Energy Capacity 250 Matter Stores 300 Matter Capacity 300 Sight Range 16 Robot Scan Range 14 Terrain Scan Density 10 Resistance: KI 20 Resistance: TH 20 Resistance: EX 20 Resistance: EM 20 Resistance: I 20 Resistance: S 20 Resistance: P 20 Evasion (%) 62 Offensive Hacking 10 Item Schematics ----------------- None Robot Schematics ------------------ None Fabricated ------------ Nothing Alien Tech Used ----------------- None Achievements -------------- None Challenges ------------ None Game ------ Seed ThermoelectricTachyonModule Manual? 0 Play Time 00:14:45 Cumulative 20.8 hours Start 2024.04.16 @ 17:18:29 End 2024.04.16 @ 17:31:54 Sessions 1 Manual Loads 0 Difficulty Adventurer Special Mode None Game No. 44 Rogue 32 Adventurer 12 Explorer 0 Win Type - Total 0 Types 0/0/0/0/0/0/0/0/0 Lore% 19 Gallery% 32 Achievement% 27 Wizard Run 0 Options --------- Layout 2 ASCII 0 Keyboard 1 Movement Arrows Keybinds 0 Fullscreen 2 Font 32/Tamsyn Map View 50x44 Zoom Use 0% Tactical HUD 1 Map Filters NONE Filters NONE Steam 1 RUN: f6c70804-a692-4c22-bf85-bf24c4be41e2